bitfinex/quotes_BTCUSD_20240728
["timestamp","ask_amount","ask_price","bid_price","bid_amount"]
[1722162772024,1.45134391,67741.0,67740.0,0.000924]
[1722162772357,1.45134391,67741.0,67740.0,0.079224]
[1722162772358,1.37003725,67741.0,67740.0,0.079224]
[1722162774274,1.3701119,67741.0,67740.0,0.079224]
[1722162775094,1.37008956,67741.0,67740.0,0.079224]
[1722162775655,1.13389656,67741.0,67740.0,0.143524]
[1722162778302,1.13381474,67741.0,67740.0,0.143524]
[1722162780187,1.26658306,67741.0,67740.0,0.143524]
[1722162781013,1.14658769,67741.0,67740.0,0.143524]
[1722162781216,1.13427437,67741.0,67740.0,0.143524]
[1722162781651,1.13419561,67741.0,67740.0,0.143524]
[1722162783731,1.01376979,67741.0,67740.0,0.143524]
[1722162783952,1.13423462,67741.0,67740.0,0.143524]
[1722162785535,0.26690241,67741.0,67740.0,0.143524]
[1722162785754,0.07178173,67741.0,67740.0,0.143524]
[1722162785956,0.1825239,67741.0,67740.0,0.143524]
[1722162786704,0.07178173,67741.0,67740.0,0.143524]
[1722162786904,0.02834158,67741.0,67740.0,0.143524]
[1722162787093,0.18232269,67741.0,67740.0,0.143524]
[1722162787287,0.07157703,67741.0,67740.0,0.143524]
[1722162789578,0.18967303,67741.0,67740.0,0.143524]
[1722162790171,0.07157703,67741.0,67740.0,0.143524]
[1722162790388,0.19010147,67741.0,67740.0,0.143524]
[1722162790820,0.19000314,67741.0,67740.0,0.143524]
[1722162791587,0.30073527,67741.0,67740.0,0.143524]
[1722162791779,0.19000314,67741.0,67740.0,0.143524]
[1722162792248,0.30073096,67741.0,67740.0,0.143524]
[1722162792745,0.30063574,67741.0,67740.0,0.143524]
[1722162792865,0.53682874,67741.0,67740.0,0.143524]
[1722162793070,0.42611192,67741.0,67740.0,0.143524]
[1722162793533,0.38263058,67741.0,67740.0,0.143524]
[1722162793734,0.42576368,67741.0,67740.0,0.143524]
[1722162793959,0.53647617,67741.0,67740.0,0.143524]
[1722162795911,1.00886217,67741.0,67740.0,0.143524]
[1722162796115,0.89814968,67741.0,67740.0,0.143524]
[1722162796877,0.89780998,67741.0,67740.0,0.143524]
[1722162797482,1.05672148,67741.0,67740.0,0.065224]
[1722162797809,1.13303574,67741.0,67740.0,0.065224]
[1722162798010,1.01392808,67741.0,67740.0,0.065224]
[1722162798218,1.13294864,67741.0,67740.0,0.065224]
[1722162798785,1.13294864,67741.0,67740.0,0.000924]
[1722162798986,1.13294864,67741.0,67740.0,0.144824]
[1722162800236,1.13309282,67741.0,67740.0,0.144824]
[1722162800661,1.13309793,67741.0,67740.0,0.144824]
[1722162802380,1.13313302,67741.0,67740.0,0.144824]
[1722162802508,0.89694002,67741.0,67740.0,0.144824]
[1722162802710,0.73802852,67741.0,67740.0,0.144824]
[1722162803109,0.53610321,67741.0,67740.0,0.144824]
[1722162804200,0.42540858,67741.0,67740.0,0.144824]
[1722162804405,0.53610057,67741.0,67740.0,0.144824]
[1722162805840,0.77229357,67741.0,67740.0,0.144824]
[1722162806054,0.77229357,67741.0,67740.0,0.063324]
[1722162806237,1.12386289,67741.0,67740.0,0.000924]
[1722162806440,1.25669328,67741.0,67740.0,0.000924]
[1722162806642,1.24136252,67741.0,67740.0,0.000924]
[1722162806804,1.12386133,67741.0,67740.0,0.000924]
[1722162808690,1.44245433,67741.0,67740.0,0.000924]
[1722162809038,1.50395433,67741.0,67740.0,0.000924]
[1722162809805,1.5009485,67741.0,67740.0,0.000924]
[1722162810348,1.50094849,67741.0,67740.0,0.000924]
[1722162810566,1.52394849,67741.0,67740.0,0.000924]
[1722162812745,2.01040106,67741.0,67740.0,0.000924]
[1722162812954,2.00319662,67741.0,67740.0,0.000924]
[1722162813161,2.23519595,67741.0,67740.0,0.000924]
[1722162813561,2.21519595,67741.0,67740.0,0.000924]
[1722162813904,2.22919595,67741.0,67740.0,0.000924]
[1722162814124,2.00819662,67741.0,67740.0,0.000924]
[1722162814269,1.85793705,67741.0,67740.0,0.000924]
[1722162814489,1.84693705,67741.0,67740.0,0.000924]
[1722162814892,1.86093705,67741.0,67740.0,0.000924]
[1722162815721,1.87493705,67741.0,67740.0,0.000924]
[1722162815941,1.86093705,67741.0,67740.0,0.000924]
[1722162816144,1.89539752,67741.0,67740.0,0.000924]
[1722162816441,2.02644465,67741.0,67740.0,0.000924]
[1722162817624,1.79025165,67741.0,67740.0,0.000924]
[1722162818467,1.77625165,67741.0,67740.0,0.000924]
[1722162818686,1.79025165,67741.0,67740.0,0.000924]
[1722162819083,1.77625165,67741.0,67740.0,0.000924]
[1722162819461,1.77610371,67741.0,67740.0,0.000924]
[1722162819927,1.90939752,67741.0,67740.0,0.000924]
[1722162820059,2.02642707,67741.0,67740.0,0.000924]
[1722162820264,2.0264279,67741.0,67740.0,0.000924]
[1722162821521,1.7902349,67741.0,67740.0,0.000924]
[1722162822717,1.67320452,67741.0,67740.0,0.000924]
[1722162822897,1.79026043,67741.0,67740.0,0.000924]
[1722162825029,2.02645343,67741.0,67740.0,0.000924]
[1722162825595,2.01245343,67741.0,67740.0,0.000924]
[1722162825858,1.89539752,67741.0,67740.0,0.000924]
[1722162826032,2.01297081,67741.0,67740.0,0.000924]
[1722162827020,2.02697081,67741.0,67740.0,0.000924]
[1722162827413,2.01297081,67741.0,67740.0,0.000924]
[1722162827825,2.02697081,67741.0,67740.0,0.000924]
[1722162828221,2.01163079,67741.0,67740.0,0.000924]
[1722162828428,2.02697502,67741.0,67740.0,0.000924]
[1722162829210,1.90940173,67741.0,67740.0,0.000924]
[1722162829330,2.02768757,67741.0,67740.0,0.000924]
[1722162829748,2.01368757,67741.0,67740.0,0.000924]
[1722162830304,2.02768757,67741.0,67740.0,0.000924]
[1722162830611,2.01368757,67741.0,67740.0,0.000924]
[1722162831466,1.299122,67738.0,67737.0,0.000924]
[1722162831772,1.82515245,67738.0,67737.0,0.000924]
[1722162831953,1.84815245,67738.0,67737.0,0.000924]
[1722162832156,2.08435645,67738.0,67737.0,0.000924]
[1722162832381,1.96607061,67738.0,67737.0,0.000924]
[1722162832744,2.23423688,67738.0,67737.0,0.000924]
[1722162833305,2.25737788,67738.0,67737.0,0.000924]
[1722162833504,2.27137788,67738.0,67737.0,0.000924]
[1722162835649,2.26971218,67738.0,67737.0,0.000924]
[1722162839443,2.26986619,67738.0,67737.0,0.000924]
[1722162839647,2.04259528,67738.0,67737.0,0.000924]
[1722162841414,1.96743513,67738.0,67737.0,0.000924]
[1722162841721,2.04237007,67738.0,67737.0,0.000924]
[1722162842527,2.04237035,67738.0,67737.0,0.000924]
[1722162842731,2.02702584,67738.0,67737.0,0.000924]
[1722162842929,1.74256634,67738.0,67737.0,0.000924]
[1722162844131,1.58730677,67738.0,67737.0,0.000924]
[1722162844556,1.58776196,67738.0,67737.0,0.000924]
[1722162844960,1.50896196,67738.0,67737.0,0.000924]
[1722162845135,1.50896196,67738.0,67737.0,0.065224]
[1722162847908,1.50887491,67738.0,67737.0,0.065224]
[1722162848665,1.50887491,67738.0,67737.0,0.000924]
[1722162849092,1.50887491,67738.0,67732.0,0.009141]
[1722162849093,1.145294,67733.0,67732.0,0.009141]
[1722162849314,1.145294,67733.0,67727.0,0.000913]
[1722162849315,0.354358,67728.0,67727.0,0.000913]
[1722162849500,1.44521701,67728.0,67727.0,0.000913]
[1722162849700,1.46821701,67728.0,67727.0,0.000913]
[1722162851101,1.43458173,67728.0,67727.0,0.000913]
[1722162851332,1.52253655,67728.0,67727.0,0.000913]
[1722162851542,1.37967907,67728.0,67727.0,0.000913]
[1722162851675,1.52253654,67728.0,67727.0,0.000913]
[1722162852292,1.67279611,67728.0,67727.0,0.000913]
[1722162852966,1.90893363,67728.0,67727.0,0.000913]
[1722162853549,1.91766171,67728.0,67727.0,0.000913]
[1722162854414,1.91767159,67728.0,67727.0,0.000913]
[1722162855520,1.53117302,67728.0,67727.0,0.143613]
[1722162857586,1.53133693,67728.0,67727.0,0.143613]
[1722162859365,1.06317,67722.0,67721.0,0.002]
[1722162859569,1.06317,67722.0,67721.0,0.0663]
[1722162859570,1.39470502,67722.0,67721.0,0.0663]
[1722162860577,1.40470502,67722.0,67721.0,0.0663]
[1722162860778,1.41570502,67722.0,67721.0,0.0663]
[1722162860978,1.40622732,67722.0,67721.0,0.0663]
[1722162861377,1.27377407,67722.0,67721.0,0.0663]
[1722162861582,1.40622731,67722.0,67721.0,0.0663]
[1722162862034,1.41822731,67722.0,67721.0,0.0663]
[1722162862378,1.40622731,67722.0,67721.0,0.0663]
[1722162862955,1.39522731,67722.0,67721.0,0.0663]
[1722162863278,1.40922731,67722.0,67721.0,0.0663]
[1722162864133,1.42322731,67722.0,67721.0,0.0663]
[1722162864313,1.42314535,67722.0,67721.0,0.0663]
[1722162864510,1.52199437,67722.0,67721.0,0.0663]
[1722162864719,1.62199437,67722.0,67721.0,0.0663]
[1722162866720,1.52314535,67722.0,67721.0,0.0663]
[1722162867468,1.52281934,67722.0,67721.0,0.0663]
[1722162868476,1.24955934,67722.0,67721.0,0.1458]
[1722162868657,1.26355934,67722.0,67721.0,0.1458]
[1722162868859,1.01329934,67722.0,67721.0,0.1458]
[1722162869304,0.92729934,67722.0,67721.0,0.1458]
[1722162869504,0.31935388,67722.0,67721.0,0.1458]
[1722162869761,0.08434217,67722.0,67721.0,0.263931]
[1722162869961,0.01774217,67722.0,67721.0,0.263931]
[1722162870159,0.01339795,67722.0,67721.0,0.500194]
[1722162870280,0.01339795,67722.0,67721.0,0.263931]
[1722162870281,0.011,67722.0,67721.0,0.263931]
[1722162870666,0.014,67722.0,67721.0,0.263931]
[1722162870793,0.04430309,67723.0,67722.0,0.1408]
[1722162871224,0.04430323,67723.0,67722.0,0.1408]
[1722162871435,0.04430336,67724.0,67721.0,0.121131]
[1722162871629,0.04430336,67725.0,67723.0,0.0613]
[1722162871813,0.04430336,67725.0,67722.0,0.11920385]
[1722162872014,0.04430336,67725.0,67724.0,0.118126]
[1722162872218,0.04430336,67729.0,67722.0,0.002]
[1722162872582,0.4771,67740.0,67733.0,0.25891]
[1722162872583,0.04430336,67734.0,67733.0,0.25891]
[1722162872816,0.45077872,67746.0,67733.0,0.25891]
[1722162872817,0.04430336,67739.0,67736.0,0.236211]
[1722162873019,0.36906681,67752.0,67739.0,0.1181]
[1722162873020,0.04430336,67740.0,67739.0,0.1181]
[1722162873164,0.08860654,67744.0,67737.0,0.07808198]
[1722162873165,0.04430336,67744.0,67743.0,0.118093]
[1722162873386,0.14961901,67751.0,67740.0,0.236197]
[1722162873387,0.04430336,67749.0,67740.0,0.236197]
[1722162873589,0.04430336,67749.0,67745.0,0.1408]
[1722162873789,0.04430336,67750.0,67746.0,0.118087]
[1722162874020,0.16238436,67750.0,67747.0,0.0613]
[1722162874315,0.118081,67750.0,67747.0,0.0613]
[1722162874473,0.118083,67749.0,67747.0,0.0613]
[1722162875406,0.14961901,67751.0,67747.0,0.0613]
[1722162875611,0.118082,67749.0,67747.0,0.0613]
[1722162875813,0.003,67750.0,67747.0,0.0613]
[1722162876012,0.118083,67749.0,67747.0,0.0613]
[1722162876624,0.118084,67748.0,67747.0,0.0613]
[1722162876992,0.002,67749.0,67747.0,0.0613]
[1722162877188,0.002,67749.0,67748.0,0.0795]
[1722162877403,0.002,67749.0,67748.0,0.1408]
[1722162878212,0.357247,67749.0,67748.0,0.1408]
[1722162878453,0.356247,67749.0,67748.0,0.1408]
[1722162878711,0.355247,67749.0,67748.0,0.1408]
[1722162879114,0.355247,67749.0,67748.0,0.1398]
[1722162879289,0.119082,67749.0,67748.0,0.1398]
[1722162879760,0.121082,67749.0,67748.0,0.1398]
[1722162880364,0.593412,67749.0,67748.0,0.1398]
[1722162880827,0.15196534,67749.0,67743.0,0.0613]
[1722162881029,0.354274,67744.0,67743.0,0.0613]
[1722162881254,0.73996706,67744.0,67743.0,0.0613]
[1722162882117,0.73996706,67744.0,67743.0,0.1383]
[1722162882318,0.73996706,67744.0,67743.0,0.1433]
[1722162882700,0.73996706,67744.0,67743.0,0.005]
[1722162882701,1.21233306,67744.0,67743.0,0.005]
[1722162882917,1.02638513,67744.0,67743.0,0.005]
[1722162883232,1.02669397,67744.0,67743.0,0.009]
[1722162883624,0.354316,67736.0,67735.0,0.0644]
[1722162883840,0.50457557,67736.0,67735.0,0.0644]
[1722162884016,0.74078657,67736.0,67735.0,0.0644]
[1722162886853,0.74078657,67736.0,67735.0,0.0694]
[1722162887612,0.74078657,67736.0,67735.0,0.0644]
[1722162889596,0.74078657,67736.0,67735.0,0.0674]
[1722162890061,0.74078657,67736.0,67735.0,0.0644]
[1722162890497,0.74178657,67736.0,67735.0,0.0644]
[1722162892905,0.74078657,67736.0,67735.0,0.0644]
[1722162893201,0.74178657,67736.0,67735.0,0.0644]
[1722162895392,0.79240488,67736.0,67735.0,0.0644]
[1722162896198,0.79140488,67736.0,67735.0,0.0644]
[1722162896610,0.79240488,67736.0,67735.0,0.0644]
[1722162897021,0.74078657,67736.0,67735.0,0.0644]
[1722162897216,0.79141588,67736.0,67735.0,0.0644]
[1722162897420,0.81341261,67736.0,67735.0,0.0644]
[1722162900257,0.81341261,67736.0,67735.0,0.065324]
[1722162900423,0.57714318,67736.0,67735.0,0.065324]
[1722162900826,0.7627833,67736.0,67735.0,0.065324]
[1722162901065,0.81335037,67736.0,67735.0,0.065324]
[1722162902087,0.81335037,67736.0,67735.0,0.000924]
[1722162902266,0.81235037,67736.0,67735.0,0.000924]
[1722162902650,0.81235037,67736.0,67735.0,0.003924]
[1722162902823,0.81233371,67736.0,67735.0,0.003924]
[1722162903024,0.81233371,67736.0,67735.0,0.000924]
[1722162903025,0.07154605,67736.0,67735.0,0.000924]
[1722162903252,0.07154605,67736.0,67735.0,0.002924]
[1722162903426,0.05054932,67736.0,67735.0,0.121031]
[1722162903601,0.118097,67741.0,67735.0,0.000924]
[1722162903808,0.07236317,67740.0,67735.0,0.000924]
[1722162904008,0.001,67736.0,67735.0,0.000924]
[1722162904208,0.001,67736.0,67735.0,0.355245]
[1722162905358,0.00084,67748.0,67735.0,0.237138]
[1722162905489,0.00084,67748.0,67746.0,0.118088]
[1722162905490,0.05022112,67747.0,67746.0,0.118088]
[1722162905688,0.05022112,67747.0,67746.0,0.115088]
[1722162905914,0.05022112,67747.0,67741.0,0.07512979]
[1722162905915,0.00084,67748.0,67747.0,0.354258]
[1722162906295,0.05105155,67748.0,67747.0,0.59043]
[1722162906520,0.05105155,67748.0,67747.0,0.354258]
[1722162906521,0.00884,67748.0,67747.0,0.354258]
[1722162906905,0.00884,67748.0,67747.0,0.353258]
[1722162907105,0.00084,67748.0,67747.0,0.353258]
[1722162907310,0.00184,67748.0,67747.0,0.353258]
[1722162907865,0.00184,67748.0,67747.0,0.58943]
[1722162908640,0.00184,67748.0,67747.0,0.353258]
[1722162909036,0.00184,67748.0,67744.0,0.236182]
[1722162909237,0.00184,67748.0,67740.0,0.1557]
[1722162909238,0.00184,67748.0,67747.0,0.118086]
[1722162909880,0.00084,67748.0,67747.0,0.118086]
[1722162910276,0.00084,67748.0,67742.0,0.23619]
[1722162910277,0.00084,67748.0,67746.0,0.118086]
[1722162910680,0.00084,67748.0,67742.0,0.23619]
[1722162910858,0.00084,67748.0,67745.0,0.118089]
[1722162911480,0.00084,67748.0,67744.0,0.11809]
[1722162911681,0.00084,67748.0,67747.0,0.001]
[1722162912872,0.00084,67748.0,67743.0,0.236186]
[1722162913072,0.00084,67748.0,67744.0,0.11809]
[1722162913753,0.00084,67748.0,67740.0,0.391895]
[1722162913754,0.118089,67746.0,67740.0,0.118098]
[1722162913959,0.00084,67748.0,67741.0,0.118096]
[1722162913960,0.118086,67747.0,67741.0,0.118096]
[1722162914202,0.118089,67745.0,67740.0,0.07512979]
[1722162914401,0.236173,67747.0,67740.0,0.07512979]
[1722162914603,0.118088,67746.0,67740.0,0.19322779]
[1722162915612,0.118088,67746.0,67740.0,0.07512979]
[1722162916258,0.118088,67746.0,67740.0,0.07812979]
[1722162916539,0.118088,67746.0,67740.0,0.08012979]
[1722162916708,0.00084,67748.0,67740.0,0.08012979]
[1722162916914,0.00084,67748.0,67740.0,0.19822779]
[1722162917089,0.11809,67745.0,67740.0,0.08012979]
[1722162917656,0.236177,67746.0,67740.0,0.08012979]
[1722162917657,0.118088,67746.0,67740.0,0.08012979]
[1722162917987,0.00084,67748.0,67740.0,0.19522779]
[1722162917988,0.118087,67747.0,67740.0,0.19522779]
[1722162918342,0.00084,67748.0,67740.0,0.19322779]
[1722162918555,0.118088,67746.0,67740.0,0.19322779]
[1722162918750,0.118086,67747.0,67740.0,0.19322779]
[1722162919128,0.118926,67748.0,67741.0,0.118096]
[1722162919330,0.05016254,67747.0,67740.0,0.08012979]
[1722162919532,0.00084,67748.0,67743.0,0.118092]
[1722162919940,0.118925,67748.0,67742.0,0.118095]
[1722162920269,0.00084,67748.0,67747.0,0.07512979]
[1722162921664,0.00084,67748.0,67746.0,0.118087]
[1722162925473,0.00084,67748.0,67740.0,0.46702279]
[1722162925474,0.00084,67748.0,67745.0,0.118089]
[1722162926079,0.00084,67748.0,67744.0,0.118091]
[1722162926483,0.00084,67748.0,67738.0,0.1557]
[1722162926736,0.00084,67748.0,67742.0,0.118094]
[1722162926737,0.118925,67748.0,67742.0,0.118094]
[1722162927287,0.00084,67748.0,67739.0,0.31132779]
[1722162927484,0.00084,67748.0,67742.0,0.118093]
[1722162927722,0.00084,67748.0,67743.0,0.118093]
[1722162928113,0.00084,67748.0,67741.0,0.236191]
[1722162928114,0.00084,67748.0,67742.0,0.118095]
[1722162928515,0.118925,67748.0,67742.0,0.118095]
[1722162931333,0.00084,67748.0,67742.0,0.118095]
[1722162932439,0.04992703,67747.0,67742.0,0.118095]
[1722162933675,0.04992703,67747.0,67743.0,0.118093]
[1722162934298,0.04992836,67746.0,67743.0,0.118093]
[1722162934504,0.00084,67748.0,67743.0,0.118093]
[1722162934682,0.04992836,67747.0,67743.0,0.118093]
[1722162935043,0.0460232,67746.0,67743.0,0.118093]
[1722162935248,0.04994042,67745.0,67743.0,0.119093]
[1722162935462,0.00084,67748.0,67743.0,0.119093]
[1722162935664,0.04994042,67747.0,67744.0,0.0015542]
[1722162936472,0.04994042,67747.0,67743.0,0.120093]
[1722162936688,0.04994042,67747.0,67744.0,0.002]
[1722162936891,0.04994042,67747.0,67744.0,0.12009]
[1722162937317,0.04994042,67747.0,67745.0,0.0015542]
[1722162937533,0.04994042,67747.0,67744.0,0.12009]
[1722162937849,0.04994042,67747.0,67745.0,0.0015542]
[1722162938438,0.05018692,67746.0,67745.0,0.0015542]
[1722162939162,0.05018692,67747.0,67745.0,0.001]
[1722162939377,0.05018692,67746.0,67745.0,0.003]
[1722162939579,0.05018692,67746.0,67744.0,0.0014154]
[1722162939783,0.05018692,67745.0,67743.0,0.118092]
[1722162939996,0.00084,67748.0,67745.0,0.003]
[1722162940181,0.05020396,67747.0,67745.0,0.003]
[1722162940335,0.05020396,67747.0,67746.0,0.0015542]
[1722162940534,0.16828996,67747.0,67746.0,0.0015542]
[1722162940733,0.05020396,67747.0,67743.0,0.118092]
[1722162940937,0.05020396,67747.0,67744.0,0.0015542]
[1722162941143,0.05020396,67747.0,67745.0,0.0659]
[1722162941382,0.00084,67748.0,67746.0,0.0015542]
[1722162941580,0.05019046,67747.0,67745.0,0.1465]
[1722162941817,0.00084,67748.0,67746.0,0.0015542]
[1722162941948,0.05004214,67747.0,67746.0,0.0015542]
[1722162942140,0.00084,67748.0,67746.0,0.0015542]
[1722162942349,0.05004106,67747.0,67746.0,0.0015542]
[1722162942542,0.07478612,67747.0,67746.0,0.0015542]
[1722162942790,0.07478612,67747.0,67745.0,0.1475]
[1722162943039,0.05004106,67746.0,67745.0,0.1465]
[1722162943224,0.05004106,67747.0,67745.0,0.1465]
[1722162943431,0.05003235,67747.0,67746.0,0.002]
[1722162943638,0.07466992,67747.0,67746.0,0.0015542]
[1722162945000,0.00084,67748.0,67746.0,0.0015542]
[1722162945204,0.00084,67748.0,67746.0,0.002]
[1722162945205,0.05007573,67747.0,67746.0,0.002]
[1722162945350,0.05007573,67747.0,67746.0,0.00314632]
[1722162945534,0.05007573,67747.0,67746.0,0.00414632]
[1722162945732,0.05007573,67747.0,67746.0,0.12223432]
[1722162945934,0.05007573,67747.0,67746.0,0.00414632]
[1722162946329,0.07611171,67747.0,67746.0,0.00214632]
[1722162947428,0.07611171,67747.0,67746.0,0.00414632]
[1722162948294,0.02603598,67747.0,67746.0,0.00414632]
[1722162948464,0.05029997,67747.0,67746.0,0.00414632]
[1722162948635,0.07633595,67747.0,67746.0,0.00414632]
[1722162949803,0.07633595,67747.0,67746.0,0.003]
[1722162949804,0.12063369,67747.0,67746.0,0.003]
[1722162950020,0.07633595,67747.0,67746.0,0.003]
[1722162950415,0.12063369,67747.0,67746.0,0.003]
[1722162950652,0.07633595,67747.0,67746.0,0.003]
[1722162951055,0.12066084,67747.0,67746.0,0.003]
[1722162951260,0.07633595,67747.0,67746.0,0.003]
[1722162951466,0.14278256,67747.0,67746.0,0.003]
[1722162951621,0.14283874,67747.0,67746.0,0.003]
[1722162952030,0.14222758,67747.0,67746.0,0.003]
[1722162954012,0.14203547,67747.0,67746.0,0.003]
[1722162954782,0.14205569,67747.0,67746.0,0.003]
[1722162956555,0.26014169,67747.0,67746.0,0.003]
[1722162957726,0.14205569,67747.0,67746.0,0.003]
[1722162957926,0.26014169,67747.0,67746.0,0.003]
[1722162958089,0.25988041,67747.0,67746.0,0.003]
[1722162959129,0.34048041,67747.0,67746.0,0.003]
[1722162960787,0.25988041,67747.0,67746.0,0.003]
[1722162960990,0.210631,67747.0,67746.0,0.003]
[1722162961153,0.25958368,67747.0,67746.0,0.003]
[1722162961360,0.19307466,67747.0,67746.0,0.003]
[1722162961677,0.25958889,67747.0,67746.0,0.003]
[1722162962291,0.19307466,67747.0,67746.0,0.003]
[1722162962919,0.07498866,67747.0,67746.0,0.003]
[1722162963059,0.07498866,67747.0,67746.0,0.1455]
[1722162963755,0.07513776,67747.0,67746.0,0.1455]
[1722162964336,0.1638387,67747.0,67746.0,0.1455]
[1722162965703,0.13780272,67747.0,67746.0,0.1455]
[1722162966113,0.04910178,67747.0,67746.0,0.1455]
[1722162966633,0.07052322,67747.0,67746.0,0.14667378]
[1722162966844,0.07052322,67747.0,67746.0,0.1455]
[1722162967046,0.07067336,67747.0,67746.0,0.003]
[1722162967579,0.18875936,67747.0,67746.0,0.003]
[1722162967916,0.07067336,67747.0,67746.0,0.003]
[1722162968078,0.07067336,67747.0,67746.0,0.003924]
[1722162968486,0.07151336,67747.0,67746.0,0.003924]
[1722162969505,0.07152461,67747.0,67746.0,0.003924]
[1722162970249,0.07147828,67747.0,67746.0,0.003924]
[1722162970582,0.07153865,67747.0,67746.0,0.003924]
[1722162972896,0.07153865,67747.0,67746.0,0.146424]
[1722162973505,0.07193747,67747.0,67746.0,0.146424]
[1722162974532,0.07193747,67747.0,67746.0,0.264512]
[1722162976509,0.07193747,67747.0,67746.0,0.50209624]
[1722162976711,0.07209969,67747.0,67746.0,0.500688]
[1722162976954,0.07209969,67747.0,67746.0,0.736864]
[1722162977131,0.09498772,67747.0,67746.0,0.736864]
[1722162977474,0.05062563,67747.0,67746.0,0.736864]
[1722162977669,0.09498772,67747.0,67746.0,0.736864]
[1722162977869,0.05062563,67747.0,67746.0,0.736864]
[1722162978585,0.0949796,67747.0,67746.0,0.736864]
[1722162979955,0.05081262,67747.0,67746.0,0.736864]
[1722162980156,0.09516485,67747.0,67746.0,0.736864]
[1722162980305,0.05081262,67747.0,67746.0,0.736864]
[1722162980512,0.09516407,67747.0,67746.0,0.736864]
[1722162981110,0.05081262,67747.0,67746.0,0.500688]
[1722162981431,0.1173398,67747.0,67746.0,0.500688]
[1722162981627,0.1173398,67747.0,67746.0,0.264512]
[1722162982212,0.11734111,67747.0,67746.0,0.264512]
[1722162982425,0.11734111,67747.0,67746.0,0.122012]
[1722162983112,0.00084,67747.0,67746.0,0.122012]
[1722162983315,0.11688561,67747.0,67746.0,0.122012]
[1722162983509,0.11688561,67747.0,67746.0,0.003924]
[1722162983748,0.25740692,67747.0,67746.0,0.003924]
[1722162983949,0.19087903,67747.0,67746.0,0.003924]
[1722162984126,0.42705103,67747.0,67746.0,0.003924]
[1722162984332,0.57885489,67747.0,67746.0,0.003924]
[1722162986439,0.57874974,67747.0,67746.0,0.003924]
[1722162987548,0.81492174,67747.0,67746.0,0.003924]
[1722162987742,0.72621729,67747.0,67746.0,0.003924]
[1722162987944,0.80371729,67747.0,67746.0,0.003924]
[1722162989352,0.80371729,67747.0,67746.0,0.002924]
[1722162989658,0.51913331,67747.0,67746.0,0.002924]
[1722162989857,0.56878419,67747.0,67746.0,0.000924]
[1722162990211,0.21352443,67747.0,67746.0,0.000924]
[1722162990413,0.07292443,67747.0,67746.0,0.000924]
[1722162990671,0.1616041,67747.0,67746.0,0.000924]
[1722162990836,0.07292443,67747.0,67746.0,0.000924]
[1722162991034,0.1616041,67747.0,67746.0,0.000924]
[1722162991842,0.1616041,67747.0,67746.0,0.121012]
[1722162992020,0.07331309,67747.0,67746.0,0.357188]
[1722162992500,0.11738488,67747.0,67746.0,0.122012]
[1722162992872,0.00084,67747.0,67746.0,0.122012]
[1722162993079,0.1177173,67747.0,67746.0,0.122012]
[1722162993282,0.14330118,67747.0,67746.0,0.003924]
[1722162993450,0.14330118,67747.0,67746.0,0.0054782]
[1722162993869,0.14330118,67747.0,67746.0,0.003924]
[1722162994339,0.14330118,67747.0,67746.0,0.81229379]
[1722162994540,0.05121021,67747.0,67746.0,0.81229379]
[1722162994735,0.05121021,67747.0,67746.0,1.04846979]
[1722162994941,0.00084,67747.0,67746.0,1.04846979]
[1722162998168,0.00084,67747.0,67746.0,0.97334]
[1722163005800,0.00084,67747.0,67746.0,0.737164]
[1722163013579,0.00084,67747.0,67746.0,0.594364]
[1722163014965,0.00084,67747.0,67746.0,0.5959182]
[1722163015423,0.00084,67747.0,67746.0,0.594364]
[1722163015626,0.00084,67747.0,67746.0,0.83054]
[1722163015836,0.00084,67747.0,67746.0,0.97894]
[1722163016798,0.00084,67747.0,67746.0,0.742764]
[1722163017001,0.00084,67747.0,67746.0,1.514464]
[1722163017119,0.00084,67747.0,67746.0,1.75064]
[1722163017320,0.00084,67747.0,67746.0,2.05659957]
[1722163018299,0.00084,67747.0,67746.0,2.15859957]
[1722163018539,0.00084,67747.0,67746.0,2.15659957]
[1722163018734,0.00084,67747.0,67746.0,2.39277557]
[1722163019057,0.00084,67747.0,67746.0,2.60620424]
[1722163019228,0.00084,67747.0,67746.0,2.48355557]
[1722163019384,0.00084,67747.0,67746.0,2.60620542]
[1722163020707,0.00084,67747.0,67746.0,2.62920542]
[1722163020913,0.00084,67747.0,67746.0,2.67321462]
[1722163021263,0.00084,67747.0,67746.0,2.62920542]
[1722163021614,0.00084,67747.0,67746.0,2.6731982]
[1722163022210,0.00084,67747.0,67746.0,2.62920542]
[1722163023111,0.00084,67747.0,67746.0,2.6731982]
[1722163023319,0.00084,67760.0,67759.0,1.123155]
[1722163023528,0.00084,67760.0,67759.0,1.27141457]
[1722163024500,0.01384,67760.0,67759.0,1.27241457]
[1722163024881,0.01384,67760.0,67759.0,1.37241457]
[1722163025234,0.01284,67760.0,67759.0,1.37241457]
[1722163025371,0.01284,67760.0,67759.0,1.37441457]
[1722163025568,0.00084,67760.0,67759.0,1.37341457]
[1722163026013,0.00184,67760.0,67759.0,1.38641457]
[1722163026413,0.00284,67760.0,67759.0,1.39141457]
[1722163027131,0.00284,67760.0,67759.0,1.39341457]
[1722163027482,0.00284,67760.0,67759.0,1.62754457]
[1722163027699,0.00284,67760.0,67759.0,1.62954457]
[1722163028884,0.00284,67760.0,67759.0,1.62754457]
[1722163029212,0.00284,67760.0,67759.0,1.62954457]
[1722163029913,0.00284,67760.0,67759.0,1.62754457]
[1722163030116,0.00284,67760.0,67759.0,1.31621457]
[1722163030316,0.00284,67760.0,67759.0,1.25241457]
[1722163030556,0.00284,67760.0,67759.0,0.238065]
[1722163030966,0.00284,67760.0,67759.0,0.12]
[1722163031199,0.00284,67760.0,67759.0,0.138065]
[1722163031406,0.00284,67760.0,67759.0,0.474195]
[1722163032142,0.00284,67760.0,67759.0,0.24719089]
[1722163032343,0.00284,67760.0,67759.0,0.48332089]
[1722163033581,0.00284,67760.0,67759.0,0.71945089]
[1722163034164,0.00284,67760.0,67759.0,0.48332089]
[1722163038137,0.00284,67760.0,67759.0,0.24719089]
[1722163038497,0.00284,67760.0,67759.0,0.12]